[Event "Titled Tuesday Blitz May 16 Late 2023"]
[White "merinasian"]
[Black "Kujawski, Adam"]
[BlackFideId "1100920"]
[WhiteElo "2429"]
[BlackElo "2054"]
[Result "1-0"]
[Round "07"]
[TimeControl "180+2"]
[Date "2023.05.16"]
[WhiteClock "0:00:18"]
[BlackClock "0:00:00"]

1. d4 {[%clk 0:03:00]}  Nf6 {[%clk 0:02:58]} 2. Nf3 {[%clk 0:03:00]}  c5 {[%clk 0:02:57]} 3. d5 {[%clk 0:02:59]}  e6 {[%clk 0:02:57]} 4. Nc3 {[%clk 0:02:58]}  exd5 {[%clk 0:02:56]} 5. Nxd5 {[%clk 0:02:58]}  Nxd5 {[%clk 0:02:57]} 6. Qxd5 {[%clk 0:02:57]}  Nc6 {[%clk 0:02:57]} 7. Bg5 {[%clk 0:02:51]}  Be7 {[%clk 0:02:48]} 8. Bxe7 {[%clk 0:02:48]}  Qxe7 {[%clk 0:02:46]} 9. e3 {[%clk 0:02:31]}  O-O {[%clk 0:02:45]} 10. Rd1 {[%clk 0:02:21]}  Nb4 {[%clk 0:02:35]} 11. Qb3 {[%clk 0:02:12]}  d6 {[%clk 0:02:14]} 12. a3 {[%clk 0:02:12]}  Be6 {[%clk 0:02:02]} 13. Bc4 {[%clk 0:02:11]}  d5 {[%clk 0:01:55]} 14. Be2 {[%clk 0:02:04]}  Nc6 {[%clk 0:01:26]} 15. Qc3 {[%clk 0:01:50]}  Rfd8 {[%clk 0:01:12]} 16. O-O {[%clk 0:01:49]}  Rac8 {[%clk 0:01:09]} 17. Qd2 {[%clk 0:01:45]}  h6 {[%clk 0:01:08]} 18. c3 {[%clk 0:01:43]}  Nb8 {[%clk 0:00:50]} 19. Rfe1 {[%clk 0:01:43]}  Nd7 {[%clk 0:00:49]} 20. Bd3 {[%clk 0:01:39]}  Nf6 {[%clk 0:00:49]} 21. Qc2 {[%clk 0:01:35]}  Qc7 {[%clk 0:00:47]} 22. h3 {[%clk 0:01:35]}  a6 {[%clk 0:00:46]} 23. Rd2 {[%clk 0:01:29]}  Re8 {[%clk 0:00:44]} 24. Red1 {[%clk 0:01:28]}  Ne4 {[%clk 0:00:39]} 25. Bxe4 {[%clk 0:01:26]}  dxe4 {[%clk 0:00:39]} 26. Nh2 {[%clk 0:01:25]}  Bc4 {[%clk 0:00:12]} 27. Rd7 {[%clk 0:01:09]}  Qc6 {[%clk 0:00:12]} 28. R1d6 {[%clk 0:01:09]}  Qb5 {[%clk 0:00:12]} 29. Ng4 {[%clk 0:01:01]}  Bd3 {[%clk 0:00:11]} 30. Qd2 {[%clk 0:00:59]}  Rc6 {[%clk 0:00:08]} 31. Rd8 {[%clk 0:00:55]}  Rxd6 {[%clk 0:00:07]} 32. Rxd6 {[%clk 0:00:55]}  Qa5 {[%clk 0:00:05]} 33. Rd7 {[%clk 0:00:44]}  Rd8 {[%clk 0:00:04]} 34. Rxd8+ {[%clk 0:00:41]}  Qxd8 {[%clk 0:00:05]} 35. Ne5 {[%clk 0:00:41]}  Qd5 {[%clk 0:00:03]} 36. f4 {[%clk 0:00:37]}  c4 {[%clk 0:00:03]} 37. Kf2 {[%clk 0:00:34]}  Kh7 {[%clk 0:00:02]} 38. Ng4 {[%clk 0:00:33]}  f6 {[%clk 0:00:01]} 39. Nh2 {[%clk 0:00:32]}  Qb5 {[%clk 0:00:01]} 40. Ng4 {[%clk 0:00:29]}  Qb3 {[%clk 0:00:02]} 41. Nh2 {[%clk 0:00:24]}  Qa2 {[%clk 0:00:02]} 42. Qc1 {[%clk 0:00:23]}  Qb3 {[%clk 0:00:02]} 43. Nf1 {[%clk 0:00:23]}  b5 {[%clk 0:00:02]} 44. Ng3 {[%clk 0:00:22]}  Qa2 {[%clk 0:00:02]} 45. Nf5 {[%clk 0:00:22]}  Kg6 {[%clk 0:00:01]} 46. Nd4 {[%clk 0:00:22]}  a5 {[%clk 0:00:00]} 47. g4 {[%clk 0:00:18]} 1-0


[Site "https://www.chess.com"]

[Event "Titled Tuesday Blitz May 16 Late 2023"]
[White "Vifleemskaia, Svetlana"]
[Black "Lucas, Arthur"]
[WhiteFideId "4129490"]
[BlackFideId "26093073"]
[WhiteElo "1930"]
[BlackElo "2251"]
[Result "0-1"]
[Round "07"]
[TimeControl "180+2"]
[Date "2023.05.16"]
[WhiteClock "0:00:00"]
[BlackClock "0:00:03"]

1. d4 {[%clk 0:03:00]}  Nf6 {[%clk 0:02:48]} 2. c4 {[%clk 0:03:00]}  e6 {[%clk 0:02:39]} 3. Nc3 {[%clk 0:02:59]}  c5 {[%clk 0:02:33]} 4. d5 {[%clk 0:02:59]}  exd5 {[%clk 0:02:13]} 5. cxd5 {[%clk 0:03:00]}  d6 {[%clk 0:02:07]} 6. e4 {[%clk 0:02:59]}  g6 {[%clk 0:01:55]} 7. Bb5+ {[%clk 0:02:59]}  Nbd7 {[%clk 0:01:54]} 8. a4 {[%clk 0:03:00]}  Bg7 {[%clk 0:01:53]} 9. Nf3 {[%clk 0:02:59]}  O-O {[%clk 0:01:54]} 10. O-O {[%clk 0:02:58]}  a6 {[%clk 0:01:54]} 11. Bd3 {[%clk 0:02:57]}  Ng4 {[%clk 0:01:52]} 12. Re1 {[%clk 0:02:55]}  Nge5 {[%clk 0:01:35]} 13. Nxe5 {[%clk 0:02:54]}  Nxe5 {[%clk 0:01:35]} 14. Bf1 {[%clk 0:02:54]}  f5 {[%clk 0:01:26]} 15. f4 {[%clk 0:02:42]}  Ng4 {[%clk 0:01:21]} 16. e5 {[%clk 0:02:37]}  Qh4 {[%clk 0:01:14]} 17. h3 {[%clk 0:02:29]}  Qf2+ {[%clk 0:00:51]} 18. Kh1 {[%clk 0:02:27]}  dxe5 {[%clk 0:00:43]} 19. hxg4 {[%clk 0:02:17]}  exf4 {[%clk 0:00:36]} 20. g3 {[%clk 0:01:22]}  Qxg3 {[%clk 0:00:19]} 21. Re2 {[%clk 0:00:41]}  fxg4 {[%clk 0:00:16]} 22. Rg2 {[%clk 0:00:37]}  Qh4+ {[%clk 0:00:11]} 23. Rh2 {[%clk 0:00:37]}  Qg5 {[%clk 0:00:10]} 24. Ne4 {[%clk 0:00:33]}  Qe5 {[%clk 0:00:09]} 25. Bd3 {[%clk 0:00:22]}  g3 {[%clk 0:00:09]} 26. Rh4 {[%clk 0:00:19]}  f3 {[%clk 0:00:08]} 27. Be3 {[%clk 0:00:10]}  g2+ {[%clk 0:00:05]} 28. Kg1 {[%clk 0:00:10]}  Bd7 {[%clk 0:00:04]} 29. Bf2 {[%clk 0:00:05]}  Rae8 {[%clk 0:00:03]} 30. Nxc5 {[%clk 0:00:04]}  Bf5 {[%clk 0:00:02]} 31. Bxf5 {[%clk 0:00:03]}  Qxf5 {[%clk 0:00:03]} 32. Qd3 {[%clk 0:00:02]}  Re2 {[%clk 0:00:02]} 33. Qxf5 {[%clk 0:00:00]}  Rxf5 {[%clk 0:00:03]} 0-1


[Site "https://www.chess.com"]

[Event "Titled Tuesday Blitz May 16 Late 2023"]
[White "Martin Barcelo, Carles"]
[Black "mjelcic"]
[WhiteFideId "24561444"]
[WhiteElo "2089"]
[BlackElo "2268"]
[Result "1/2-1/2"]
[Round "07"]
[TimeControl "180+2"]
[Date "2023.05.16"]
[WhiteClock "0:00:20"]
[BlackClock "0:00:13"]

1. Nf3 {[%clk 0:02:59]}  c6 {[%clk 0:02:57]} 2. e4 {[%clk 0:02:58]}  d5 {[%clk 0:02:56]} 3. Nc3 {[%clk 0:02:56]}  dxe4 {[%clk 0:02:50]} 4. Nxe4 {[%clk 0:02:57]}  Nd7 {[%clk 0:02:50]} 5. Qe2 {[%clk 0:02:56]}  e6 {[%clk 0:02:47]} 6. b3 {[%clk 0:02:55]}  Ngf6 {[%clk 0:02:47]} 7. Bb2 {[%clk 0:02:54]}  Nxe4 {[%clk 0:02:47]} 8. Qxe4 {[%clk 0:02:55]}  Nf6 {[%clk 0:02:47]} 9. Qh4 {[%clk 0:02:55]}  Be7 {[%clk 0:02:47]} 10. Qg3 {[%clk 0:02:51]}  O-O {[%clk 0:02:45]} 11. Bd3 {[%clk 0:02:51]}  b6 {[%clk 0:02:25]} 12. O-O {[%clk 0:02:30]}  Bb7 {[%clk 0:02:25]} 13. Rae1 {[%clk 0:02:10]}  c5 {[%clk 0:02:24]} 14. Re3 {[%clk 0:02:04]}  Qd6 {[%clk 0:02:17]} 15. Qh4 {[%clk 0:01:59]}  h6 {[%clk 0:01:33]} 16. Qh3 {[%clk 0:01:58]}  Qf4 {[%clk 0:01:28]} 17. Be5 {[%clk 0:01:36]}  Qg4 {[%clk 0:01:24]} 18. Qg3 {[%clk 0:01:06]}  Qxg3 {[%clk 0:01:23]} 19. hxg3 {[%clk 0:01:07]}  Ng4 {[%clk 0:01:23]} 20. Re2 {[%clk 0:01:07]}  Nxe5 {[%clk 0:01:09]} 21. Nxe5 {[%clk 0:01:05]}  Rad8 {[%clk 0:01:09]} 22. a4 {[%clk 0:01:01]}  Bf6 {[%clk 0:00:53]} 23. Nc4 {[%clk 0:01:01]}  Ba6 {[%clk 0:00:50]} 24. Rfe1 {[%clk 0:01:00]}  Rd4 {[%clk 0:00:40]} 25. Re4 {[%clk 0:00:57]}  Rfd8 {[%clk 0:00:39]} 26. Rxd4 {[%clk 0:00:53]}  Rxd4 {[%clk 0:00:40]} 27. Re2 {[%clk 0:00:52]}  Bg5 {[%clk 0:00:37]} 28. f4 {[%clk 0:00:50]}  Bf6 {[%clk 0:00:35]} 29. Kf2 {[%clk 0:00:44]}  g6 {[%clk 0:00:33]} 30. Ne5 {[%clk 0:00:37]}  Bxd3 {[%clk 0:00:23]} 31. Nxd3 {[%clk 0:00:38]}  c4 {[%clk 0:00:23]} 32. Ne1 {[%clk 0:00:35]}  cxb3 {[%clk 0:00:17]} 33. cxb3 {[%clk 0:00:36]}  Be7 {[%clk 0:00:16]} 34. Nf3 {[%clk 0:00:18]}  Rb4 {[%clk 0:00:16]} 35. Re3 {[%clk 0:00:17]}  Bc5 {[%clk 0:00:15]} 36. d4 {[%clk 0:00:17]}  Bxd4 {[%clk 0:00:15]} 37. Nxd4 {[%clk 0:00:18]}  Rxd4 {[%clk 0:00:16]} 38. Rc3 {[%clk 0:00:17]}  Kg7 {[%clk 0:00:15]} 39. Rc7 {[%clk 0:00:17]}  a5 {[%clk 0:00:15]} 40. Rc3 {[%clk 0:00:16]}  Kf6 {[%clk 0:00:15]} 41. Ke3 {[%clk 0:00:16]}  Rb4 {[%clk 0:00:14]} 42. g4 {[%clk 0:00:16]}  g5 {[%clk 0:00:13]} 43. g3 {[%clk 0:00:16]}  Kg6 {[%clk 0:00:11]} 44. Kf3 {[%clk 0:00:16]}  Kf6 {[%clk 0:00:11]} 45. Ke3 {[%clk 0:00:16]}  Ke7 {[%clk 0:00:11]} 46. Kf3 {[%clk 0:00:17]}  Kd6 {[%clk 0:00:12]} 47. Ke3 {[%clk 0:00:17]}  Kd5 {[%clk 0:00:12]} 48. Rd3+ {[%clk 0:00:17]}  Kc6 {[%clk 0:00:12]} 49. Rc3+ {[%clk 0:00:18]}  Kd6 {[%clk 0:00:12]} 50. Rd3+ {[%clk 0:00:18]}  Ke7 {[%clk 0:00:12]} 51. Rc3 {[%clk 0:00:18]}  f5 {[%clk 0:00:12]} 52. gxf5 {[%clk 0:00:16]}  exf5 {[%clk 0:00:12]} 53. Kf3 {[%clk 0:00:15]}  Kd6 {[%clk 0:00:11]} 54. Ke3 {[%clk 0:00:15]}  Kd5 {[%clk 0:00:10]} 55. Rd3+ {[%clk 0:00:16]}  Ke6 {[%clk 0:00:11]} 56. Rc3 {[%clk 0:00:16]}  b5 {[%clk 0:00:10]} 57. axb5 {[%clk 0:00:09]}  Rxb5 {[%clk 0:00:11]} 58. Kf3 {[%clk 0:00:08]}  g4+ {[%clk 0:00:09]} 59. Ke3 {[%clk 0:00:07]}  h5 {[%clk 0:00:09]} 60. Kd3 {[%clk 0:00:06]}  Rd5+ {[%clk 0:00:09]} 61. Kc2 {[%clk 0:00:07]}  Kd6 {[%clk 0:00:08]} 62. Re3 {[%clk 0:00:05]}  Rc5+ {[%clk 0:00:09]} 63. Kb2 {[%clk 0:00:05]}  Rd5 {[%clk 0:00:08]} 64. Kc3 {[%clk 0:00:05]}  Kc5 {[%clk 0:00:07]} 65. Re8 {[%clk 0:00:04]}  Rd1 {[%clk 0:00:06]} 66. Rc8+ {[%clk 0:00:04]}  Kb5 {[%clk 0:00:06]} 67. Rb8+ {[%clk 0:00:04]}  Ka6 {[%clk 0:00:05]} 68. Ra8+ {[%clk 0:00:04]}  Kb6 {[%clk 0:00:05]} 69. Rb8+ {[%clk 0:00:04]}  Kc5 {[%clk 0:00:05]} 70. Rf8 {[%clk 0:00:03]}  Rd5 {[%clk 0:00:05]} 71. Ra8 {[%clk 0:00:03]}  Kd6 {[%clk 0:00:05]} 72. Rd8+ {[%clk 0:00:03]}  Ke6 {[%clk 0:00:05]} 73. Re8+ {[%clk 0:00:03]}  Kf6 {[%clk 0:00:05]} 74. Rh8 {[%clk 0:00:03]}  Kg6 {[%clk 0:00:06]} 75. Kc4 {[%clk 0:00:03]}  Rd2 {[%clk 0:00:05]} 76. Ra8 {[%clk 0:00:03]}  Rg2 {[%clk 0:00:05]} 77. Rxa5 {[%clk 0:00:03]}  Rxg3 {[%clk 0:00:05]} 78. Ra6+ {[%clk 0:00:03]}  Kg7 {[%clk 0:00:06]} 79. Ra7+ {[%clk 0:00:03]}  Kf6 {[%clk 0:00:06]} 80. Ra6+ {[%clk 0:00:04]}  Ke7 {[%clk 0:00:06]} 81. Kd5 {[%clk 0:00:04]}  Rd3+ {[%clk 0:00:06]} 82. Ke5 {[%clk 0:00:05]}  Rxb3 {[%clk 0:00:06]} 83. Kxf5 {[%clk 0:00:05]}  Rb5+ {[%clk 0:00:06]} 84. Ke4 {[%clk 0:00:05]}  Kf7 {[%clk 0:00:07]} 85. Ra7+ {[%clk 0:00:04]}  Kg6 {[%clk 0:00:07]} 86. Ra6+ {[%clk 0:00:05]}  Kg7 {[%clk 0:00:07]} 87. Ra7+ {[%clk 0:00:05]}  Kf6 {[%clk 0:00:07]} 88. Ra6+ {[%clk 0:00:05]}  Ke7 {[%clk 0:00:08]} 89. Rh6 {[%clk 0:00:05]}  g3 {[%clk 0:00:08]} 90. Kf3 {[%clk 0:00:05]}  Rb3+ {[%clk 0:00:06]} 91. Kg2 {[%clk 0:00:05]}  Rb5 {[%clk 0:00:04]} 92. Kxg3 {[%clk 0:00:05]}  Kf7 {[%clk 0:00:03]} 93. Ra6 {[%clk 0:00:05]}  Kg7 {[%clk 0:00:04]} 94. Kh4 {[%clk 0:00:04]}  Rf5 {[%clk 0:00:04]} 95. Ra4 {[%clk 0:00:03]}  Kh6 {[%clk 0:00:03]} 96. Re4 {[%clk 0:00:04]}  Kg6 {[%clk 0:00:04]} 97. Re6+ {[%clk 0:00:03]}  Kg7 {[%clk 0:00:04]} 98. Kg3 {[%clk 0:00:03]}  h4+ {[%clk 0:00:02]} 99. Kg4 {[%clk 0:00:04]}  Rf6 {[%clk 0:00:03]} 100. Re7+ {[%clk 0:00:02]}  Kg6 {[%clk 0:00:03]} 101. Re4 {[%clk 0:00:02]}  h3 {[%clk 0:00:02]} 102. Re3 {[%clk 0:00:02]}  h2 {[%clk 0:00:01]} 103. Rh3 {[%clk 0:00:03]}  Kg7 {[%clk 0:00:02]} 104. Rxh2 {[%clk 0:00:03]}  Ra6 {[%clk 0:00:01]} 105. Rd2 {[%clk 0:00:03]}  Kg8 {[%clk 0:00:02]} 106. Kg5 {[%clk 0:00:03]}  Kf7 {[%clk 0:00:02]} 107. Rd7+ {[%clk 0:00:03]}  Kf8 {[%clk 0:00:02]} 108. Rb7 {[%clk 0:00:03]}  Kg8 {[%clk 0:00:02]} 109. Kf5 {[%clk 0:00:03]}  Kf8 {[%clk 0:00:02]} 110. Kg5 {[%clk 0:00:04]}  Rc6 {[%clk 0:00:03]} 111. f5 {[%clk 0:00:04]}  Ra6 {[%clk 0:00:03]} 112. Kf4 {[%clk 0:00:05]}  Rc6 {[%clk 0:00:03]} 113. Ke5 {[%clk 0:00:05]}  Ra6 {[%clk 0:00:03]} 114. Rc7 {[%clk 0:00:06]}  Rb6 {[%clk 0:00:03]} 115. Ra7 {[%clk 0:00:06]}  Rc6 {[%clk 0:00:03]} 116. Kd5 {[%clk 0:00:06]}  Rb6 {[%clk 0:00:04]} 117. Rc7 {[%clk 0:00:06]}  Ra6 {[%clk 0:00:04]} 118. Ke5 {[%clk 0:00:06]}  Rb6 {[%clk 0:00:04]} 119. Kf4 {[%clk 0:00:07]}  Ra6 {[%clk 0:00:04]} 120. Kg5 {[%clk 0:00:08]}  Rb6 {[%clk 0:00:04]} 121. Rc4 {[%clk 0:00:08]}  Ra6 {[%clk 0:00:04]} 122. Re4 {[%clk 0:00:08]}  Rb6 {[%clk 0:00:04]} 123. Rf4 {[%clk 0:00:09]}  Ra6 {[%clk 0:00:04]} 124. Rh4 {[%clk 0:00:10]}  Rb6 {[%clk 0:00:04]} 125. Ra4 {[%clk 0:00:11]}  Rc6 {[%clk 0:00:04]} 126. Ra7 {[%clk 0:00:11]}  Rb6 {[%clk 0:00:04]} 127. Rh7 {[%clk 0:00:11]}  Ra6 {[%clk 0:00:05]} 128. Rd7 {[%clk 0:00:11]}  Rb6 {[%clk 0:00:05]} 129. Rd4 {[%clk 0:00:12]}  Ra6 {[%clk 0:00:06]} 130. Rc4 {[%clk 0:00:12]}  Rb6 {[%clk 0:00:06]} 131. Ra4 {[%clk 0:00:12]}  Rc6 {[%clk 0:00:06]} 132. Ra7 {[%clk 0:00:13]}  Rb6 {[%clk 0:00:07]} 133. f6 {[%clk 0:00:13]}  Rb1 {[%clk 0:00:07]} 134. Kf5 {[%clk 0:00:14]}  Rf1+ {[%clk 0:00:07]} 135. Ke6 {[%clk 0:00:14]}  Re1+ {[%clk 0:00:07]} 136. Kd6 {[%clk 0:00:15]}  Rd1+ {[%clk 0:00:08]} 137. Ke5 {[%clk 0:00:16]}  Re1+ {[%clk 0:00:08]} 138. Kf5 {[%clk 0:00:16]}  Rf1+ {[%clk 0:00:09]} 139. Kg5 {[%clk 0:00:17]}  Rg1+ {[%clk 0:00:09]} 140. Kf4 {[%clk 0:00:18]}  Rf1+ {[%clk 0:00:10]} 141. Ke5 {[%clk 0:00:18]}  Re1+ {[%clk 0:00:11]} 142. Kd4 {[%clk 0:00:19]}  Rd1+ {[%clk 0:00:11]} 143. Ke3 {[%clk 0:00:19]}  Re1+ {[%clk 0:00:11]} 144. Kf2 {[%clk 0:00:20]}  Re6 {[%clk 0:00:11]} 145. f7 {[%clk 0:00:19]}  Rf6+ {[%clk 0:00:11]} 146. Ke3 {[%clk 0:00:20]}  Rxf7 {[%clk 0:00:12]} 147. Rxf7+ {[%clk 0:00:20]}  Kxf7 {[%clk 0:00:13]} 1/2-1/2


[Site "https://www.chess.com"]

[Event "Titled Tuesday Blitz May 16 Late 2023"]
[White "Ingunza Curro, Andres"]
[Black "Liu, Eric"]
[WhiteFideId "24526371"]
[BlackFideId "30960240"]
[WhiteElo "2247"]
[BlackElo "2094"]
[Result "0-1"]
[Round "07"]
[TimeControl "180+2"]
[Date "2023.05.16"]
[WhiteClock "0:01:39"]
[BlackClock "0:02:13"]

1. d4 {[%clk 0:03:00]}  b6 {[%clk 0:03:00]} 2. c4 {[%clk 0:02:59]}  Bb7 {[%clk 0:03:01]} 3. Nc3 {[%clk 0:02:59]}  e6 {[%clk 0:03:02]} 4. Nf3 {[%clk 0:02:59]}  h5 {[%clk 0:03:03]} 5. Bf4 {[%clk 0:02:58]}  h4 {[%clk 0:03:03]} 6. e3 {[%clk 0:02:58]}  Be7 {[%clk 0:03:00]} 7. h3 {[%clk 0:02:58]}  Nf6 {[%clk 0:02:50]} 8. Bd3 {[%clk 0:02:58]}  d6 {[%clk 0:02:47]} 9. Qe2 {[%clk 0:02:55]}  Nbd7 {[%clk 0:02:47]} 10. e4 {[%clk 0:02:53]}  c5 {[%clk 0:02:42]} 11. e5 {[%clk 0:02:43]}  Nh5 {[%clk 0:02:42]} 12. exd6 {[%clk 0:02:36]}  Nxf4 {[%clk 0:02:30]} 13. dxe7 {[%clk 0:02:36]}  Qxe7 {[%clk 0:02:30]} 14. Qf1 {[%clk 0:02:33]}  Bxf3 {[%clk 0:02:27]} 15. gxf3 {[%clk 0:02:33]}  cxd4 {[%clk 0:02:27]} 16. Nb5 {[%clk 0:02:33]}  Ne5 {[%clk 0:02:27]} 17. Be4 {[%clk 0:02:29]}  Qb4+ {[%clk 0:02:21]} 18. Kd1 {[%clk 0:02:02]}  Rc8 {[%clk 0:02:21]} 19. b3 {[%clk 0:01:58]}  a6 {[%clk 0:02:13]} 20. Na7 {[%clk 0:01:39]}  Rc7 {[%clk 0:02:13]} 0-1


[Site "https://www.chess.com"]

[Event "Titled Tuesday Blitz May 16 Late 2023"]
[White "Vaglio Munoz, Jaime"]
[Black "Martinez, Ayelen"]
[WhiteFideId "6500145"]
[BlackFideId "118702"]
[WhiteElo "2199"]
[BlackElo "2125"]
[Result "0-1"]
[Round "07"]
[TimeControl "180+2"]
[Date "2023.05.16"]
[WhiteClock "0:00:14"]
[BlackClock "0:00:12"]

1. Nf3 {[%clk 0:03:00]}  Nf6 {[%clk 0:02:59]} 2. c4 {[%clk 0:03:00]}  g6 {[%clk 0:02:59]} 3. b3 {[%clk 0:03:00]}  Bg7 {[%clk 0:03:00]} 4. Bb2 {[%clk 0:03:00]}  O-O {[%clk 0:03:01]} 5. g3 {[%clk 0:02:59]}  d6 {[%clk 0:03:01]} 6. d4 {[%clk 0:02:59]}  c5 {[%clk 0:02:59]} 7. d5 {[%clk 0:02:57]}  a6 {[%clk 0:02:54]} 8. a4 {[%clk 0:02:56]}  e6 {[%clk 0:02:45]} 9. dxe6 {[%clk 0:02:53]}  Bxe6 {[%clk 0:02:46]} 10. Bg2 {[%clk 0:02:53]}  d5 {[%clk 0:02:41]} 11. cxd5 {[%clk 0:02:52]}  Bxd5 {[%clk 0:02:42]} 12. Qc1 {[%clk 0:02:47]}  Bxb3 {[%clk 0:02:29]} 13. Nbd2 {[%clk 0:02:43]}  Bd5 {[%clk 0:02:26]} 14. Qxc5 {[%clk 0:02:42]}  Nbd7 {[%clk 0:02:22]} 15. Qb4 {[%clk 0:02:40]}  a5 {[%clk 0:02:17]} 16. Qh4 {[%clk 0:02:38]}  Nc5 {[%clk 0:01:58]} 17. O-O {[%clk 0:02:35]}  Nfe4 {[%clk 0:01:44]} 18. Bxg7 {[%clk 0:01:59]}  Qxh4 {[%clk 0:01:36]} 19. Nxh4 {[%clk 0:01:57]}  Kxg7 {[%clk 0:01:37]} 20. Nxe4 {[%clk 0:01:54]}  Bxe4 {[%clk 0:01:38]} 21. f3 {[%clk 0:01:54]}  Bc6 {[%clk 0:01:34]} 22. e4 {[%clk 0:01:54]}  Nxa4 {[%clk 0:01:29]} 23. Rfc1 {[%clk 0:01:53]}  Nb2 {[%clk 0:01:24]} 24. Bf1 {[%clk 0:01:46]}  Rfd8 {[%clk 0:01:19]} 25. Rc2 {[%clk 0:01:45]}  Nd1 {[%clk 0:01:18]} 26. Rca2 {[%clk 0:01:38]}  Ne3 {[%clk 0:01:08]} 27. Be2 {[%clk 0:01:35]}  g5 {[%clk 0:00:50]} 28. Kf2 {[%clk 0:01:34]}  gxh4 {[%clk 0:00:42]} 29. Kxe3 {[%clk 0:01:33]}  hxg3 {[%clk 0:00:43]} 30. Rg1 {[%clk 0:01:11]}  f5 {[%clk 0:00:32]} 31. Rxg3+ {[%clk 0:01:11]}  Kf6 {[%clk 0:00:32]} 32. exf5 {[%clk 0:01:02]}  Kxf5 {[%clk 0:00:29]} 33. Bd3+ {[%clk 0:01:01]}  Kf6 {[%clk 0:00:22]} 34. Bxh7 {[%clk 0:01:01]}  a4 {[%clk 0:00:19]} 35. Rg6+ {[%clk 0:00:56]}  Kf7 {[%clk 0:00:18]} 36. Rag2 {[%clk 0:00:55]}  Rd3+ {[%clk 0:00:17]} 37. Kf4 {[%clk 0:00:50]}  Rxf3+ {[%clk 0:00:15]} 38. Kg4 {[%clk 0:00:50]}  Rc3 {[%clk 0:00:12]} 39. Rf2+ {[%clk 0:00:50]}  Ke7 {[%clk 0:00:11]} 40. Rg7+ {[%clk 0:00:46]}  Kd6 {[%clk 0:00:11]} 41. h4 {[%clk 0:00:43]}  Rc4+ {[%clk 0:00:10]} 42. Kg5 {[%clk 0:00:42]}  Ra5+ {[%clk 0:00:11]} 43. Kg6 {[%clk 0:00:41]}  Rxh4 {[%clk 0:00:10]} 44. Rf6+ {[%clk 0:00:41]}  Kc5 {[%clk 0:00:09]} 45. Kf7 {[%clk 0:00:41]}  a3 {[%clk 0:00:07]} 46. Rg5+ {[%clk 0:00:32]}  Kb6 {[%clk 0:00:07]} 47. Rxa5 {[%clk 0:00:30]}  Kxa5 {[%clk 0:00:08]} 48. Bb1 {[%clk 0:00:29]}  Ra4 {[%clk 0:00:07]} 49. Rf5+ {[%clk 0:00:28]}  Kb4 {[%clk 0:00:07]} 50. Ba2 {[%clk 0:00:29]}  Kc3 {[%clk 0:00:06]} 51. Ke7 {[%clk 0:00:28]}  Re4+ {[%clk 0:00:05]} 52. Kd6 {[%clk 0:00:27]}  Re2 {[%clk 0:00:05]} 53. Rc5+ {[%clk 0:00:24]}  Kb2 {[%clk 0:00:04]} 54. Bf7 {[%clk 0:00:23]}  a2 {[%clk 0:00:04]} 55. Bxa2 {[%clk 0:00:22]}  Kxa2 {[%clk 0:00:05]} 56. Kc7 {[%clk 0:00:23]}  Kb3 {[%clk 0:00:05]} 57. Kb6 {[%clk 0:00:22]}  Kb4 {[%clk 0:00:06]} 58. Rc1 {[%clk 0:00:22]}  Re6 {[%clk 0:00:06]} 59. Rb1+ {[%clk 0:00:22]}  Kc4 {[%clk 0:00:06]} 60. Rc1+ {[%clk 0:00:22]}  Kd4 {[%clk 0:00:06]} 61. Rd1+ {[%clk 0:00:23]}  Ke5 {[%clk 0:00:07]} 62. Re1+ {[%clk 0:00:23]}  Be4+ {[%clk 0:00:07]} 63. Kc5 {[%clk 0:00:22]}  b6+ {[%clk 0:00:07]} 64. Kb5 {[%clk 0:00:22]}  Kd4 {[%clk 0:00:07]} 65. Kb4 {[%clk 0:00:22]}  Re5 {[%clk 0:00:06]} 66. Rd1+ {[%clk 0:00:22]}  Bd3 {[%clk 0:00:06]} 67. Rh1 {[%clk 0:00:21]}  Rb5+ {[%clk 0:00:06]} 68. Ka4 {[%clk 0:00:22]}  Rb2 {[%clk 0:00:03]} 69. Rh4+ {[%clk 0:00:21]}  Kc3 {[%clk 0:00:04]} 70. Ka3 {[%clk 0:00:20]}  b5 {[%clk 0:00:04]} 71. Rh2 {[%clk 0:00:11]}  b4+ {[%clk 0:00:04]} 72. Ka4 {[%clk 0:00:11]}  Rxh2 {[%clk 0:00:04]} 73. Ka5 {[%clk 0:00:12]}  Ra2+ {[%clk 0:00:05]} 74. Kb6 {[%clk 0:00:12]}  b3 {[%clk 0:00:06]} 75. Kc5 {[%clk 0:00:12]}  b2 {[%clk 0:00:07]} 76. Kd6 {[%clk 0:00:13]}  b1=Q {[%clk 0:00:08]} 77. Ke5 {[%clk 0:00:14]}  Qb6 {[%clk 0:00:08]} 78. Kf4 {[%clk 0:00:15]}  Ra4+ {[%clk 0:00:09]} 79. Kf3 {[%clk 0:00:15]}  Qf6+ {[%clk 0:00:09]} 80. Ke3 {[%clk 0:00:16]}  Qe5+ {[%clk 0:00:09]} 81. Kf3 {[%clk 0:00:16]}  Qe2+ {[%clk 0:00:10]} 82. Kg3 {[%clk 0:00:15]}  Rg4+ {[%clk 0:00:11]} 83. Kh3 {[%clk 0:00:15]}  Qf3+ {[%clk 0:00:12]} 84. Kh2 {[%clk 0:00:14]}  Qg2# {[%clk 0:00:12]} 0-1


[Site "https://www.chess.com"]